bitfinex/quotes_BTCUSD_20220304
["timestamp","ask_amount","ask_price","bid_price","bid_amount"]
[1646384298584,0.01,41609.0,41607.0,0.32733091]
[1646384300141,0.01,41609.0,41607.0,0.37553091]
[1646384301747,0.0023,41611.0,41608.0,1.7302511]
[1646384302050,0.0023,41611.0,41609.0,0.0482]
[1646384302445,0.0023,41611.0,41610.0,0.01652393]
[1646384302645,0.0023,41611.0,41610.0,0.40066085]
[1646384302852,0.0023,41611.0,41610.0,0.54066085]
[1646384303085,0.0023,41611.0,41610.0,0.53047958]
[1646384303086,0.0001,41611.0,41610.0,0.53047958]
[1646384303287,0.0049589,41614.0,41612.0,0.060095]
[1646384303487,0.0049589,41614.0,41613.0,0.0482]
[1646384304289,0.00061328,41620.0,41615.0,0.060088]
[1646384304490,0.0021,41626.0,41617.0,1.43888136]
[1646384304693,0.0021,41626.0,41619.0,1.4402425]
[1646384304888,0.0021,41626.0,41623.0,0.02408]
[1646384305088,0.0021,41626.0,41624.0,0.07228]
[1646384305289,0.0021,41626.0,41624.0,0.2622428]
[1646384305489,0.0021,41626.0,41624.0,0.2381628]
[1646384305687,0.0021,41626.0,41624.0,0.108275]
[1646384306087,0.0011,41627.0,41625.0,1.37408]
[1646384306288,0.0011,41627.0,41626.0,0.0482]
[1646384306932,0.0003,41630.0,41629.0,0.1682294]
[1646384307132,0.0003,41630.0,41628.0,0.06008209]
[1646384307436,0.0003,41630.0,41628.0,0.10828209]
[1646384308235,0.0003,41630.0,41628.0,0.0482]
[1646384308633,0.0003,41630.0,41627.0,0.120156]
[1646384309438,0.21141414,41629.0,41627.0,0.120156]
[1646384309638,0.21141414,41629.0,41626.0,0.120159]
[1646384309840,0.0003,41630.0,41626.0,0.120159]
[1646384310041,0.18604,41635.0,41626.0,0.23024278]
[1646384310592,0.3302511,41634.0,41626.0,0.170159]
[1646384310789,0.1,41633.0,41622.0,0.0482]
[1646384310991,0.1,41633.0,41617.0,0.012]
[1646384310992,1.099727,41630.0,41606.0,0.240342]
[1646384311189,0.17408,41631.0,41608.0,0.060112]
[1646384311190,0.389507,41627.0,41608.0,0.060112]
[1646384311389,0.75838,41625.0,41608.0,0.060112]
[1646384311589,0.7343,41623.0,41610.0,0.21011959]
[1646384311789,0.365427,41624.0,41605.0,0.00120177]
[1646384311790,1.6040581,41622.0,41605.0,0.00120177]
[1646384311992,0.7343,41615.0,41605.0,0.00120177]
[1646384312192,0.7343,41612.0,41605.0,0.00120177]
[1646384312390,1.0645511,41611.0,41594.0,0.240408]
[1646384312592,1.0645511,41611.0,41593.0,0.06013]
[1646384312593,1.0886311,41611.0,41595.0,0.01201]
[1646384312790,0.7343,41607.0,41599.0,0.19842652]
[1646384312991,1.0645511,41606.0,41599.0,0.19842652]
[1646384313393,1.13041826,41606.0,41592.0,0.00120215]
[1646384313791,1.13041826,41606.0,41591.0,0.012]
[1646384313792,0.465427,41605.0,41591.0,0.012]
[1646384313992,0.465427,41605.0,41587.0,0.012]
[1646384313993,0.1,41605.0,41587.0,0.012]
[1646384314432,0.1,41605.0,41590.0,0.189609]
[1646384314833,0.1,41605.0,41591.0,0.18184874]
[1646384315142,1.0886311,41606.0,41604.0,0.19699855]
[1646384315143,0.3302511,41606.0,41604.0,0.19699855]
[1646384315335,0.21545161,41608.0,41604.0,0.19699855]
[1646384316132,0.21545161,41608.0,41604.0,0.24699855]
[1646384317135,0.21545161,41608.0,41598.0,0.110124]
[1646384317335,1.0871326,41607.0,41586.0,0.12026702]
[1646384317536,0.3528326,41607.0,41589.0,0.120262]
[1646384317739,0.3528326,41607.0,41590.0,0.06013302]
[1646384318081,0.3393326,41607.0,41590.0,0.06013302]
[1646384318284,0.3152526,41607.0,41596.0,0.20409352]
[1646384318883,0.1,41606.0,41596.0,0.20409352]
[1646384319083,0.4392476,41612.0,41603.0,0.17896357]
[1646384319283,0.4392476,41612.0,41596.0,0.170243]
[1646384319284,0.8988,41613.0,41611.0,0.17666087]
[1646384319485,0.3272476,41615.0,41611.0,0.17666087]
[1646384319683,0.05747939,41617.0,41597.0,0.33293342]
[1646384319884,0.7343,41616.0,41597.0,0.33293342]
[1646384320085,0.24532941,41608.0,41597.0,0.33293342]
[1646384320286,0.24532941,41608.0,41600.0,0.060118]
[1646384320486,0.24532941,41608.0,41600.0,0.12023661]
[1646384320684,0.24532941,41608.0,41606.0,0.18236388]
[1646384320884,0.1,41616.0,41606.0,0.18236388]
[1646384321286,0.7343,41617.0,41601.0,0.19915232]
[1646384321287,0.012,41618.0,41613.0,0.16011936]
[1646384321489,0.6763,41621.0,41613.0,0.16011936]
[1646384321490,0.1,41621.0,41613.0,0.16011936]
[1646384321686,0.1,41620.0,41613.0,0.16011936]
[1646384321931,0.1,41620.0,41606.0,0.44745697]
[1646384321932,0.28174077,41617.0,41606.0,0.44745697]
[1646384322237,0.28174077,41617.0,41606.0,0.12020937]
[1646384322636,0.28174077,41617.0,41604.0,0.012]
[1646384322834,0.28174077,41617.0,41609.0,0.19265413]
[1646384323333,0.28174077,41617.0,41610.0,0.17168268]
[1646384323532,0.28174077,41617.0,41609.0,0.19265413]
[1646384323832,0.1,41621.0,41616.0,0.21235469]
[1646384324032,0.1,41621.0,41606.0,0.3392476]
[1646384324232,0.1,41621.0,41607.0,0.060111]
[1646384324432,0.7343,41622.0,41607.0,0.060111]
[1646384324634,0.64355246,41624.0,41611.0,0.06010379]
[1646384324834,0.6084,41624.0,41611.0,0.06010379]
[1646384325034,0.6084,41624.0,41614.0,0.18169899]
[1646384325035,0.5984,41624.0,41614.0,0.18169899]
[1646384325233,0.03588754,41627.0,41614.0,0.18169899]
[1646384325437,0.03588754,41627.0,41615.0,0.0601]
[1646384325704,0.03588754,41627.0,41611.0,0.07210379]
[1646384325905,0.26063981,41621.0,41612.0,0.19319544]
[1646384326107,0.07442825,41625.0,41612.0,0.19319544]
[1646384326305,0.07442825,41625.0,41611.0,0.06010482]
[1646384326708,0.07442825,41625.0,41611.0,0.012]
[1646384326908,1.099727,41624.0,41611.0,0.012]
[1646384327109,1.123807,41624.0,41607.0,0.1857707]
[1646384327306,0.1,41623.0,41607.0,0.37589372]
[1646384327511,0.85838,41623.0,41607.0,0.1857707]
[1646384327707,0.85838,41623.0,41610.0,0.06011044]
[1646384327708,0.1,41623.0,41610.0,0.06011044]
[1646384327907,0.26545908,41616.0,41610.0,0.06011044]
[1646384328109,0.1,41623.0,41610.0,0.06011044]
[1646384328307,0.07442825,41625.0,41610.0,0.06011044]
[1646384328507,0.07442825,41625.0,41610.0,0.26918131]
[1646384328708,0.7343,41626.0,41614.0,0.19279947]
[1646384329107,0.7343,41626.0,41610.0,0.26918131]
[1646384329108,0.00409961,41621.0,41619.0,0.1674889]
[1646384329337,0.00409961,41621.0,41615.0,0.06010308]
[1646384330336,0.00409961,41621.0,41615.0,0.26958192]
[1646384330745,0.03588754,41627.0,41623.0,0.19128366]
[1646384330937,0.8343,41629.0,41621.0,0.00819922]
[1646384331538,0.28551724,41625.0,41621.0,0.00819922]
[1646384333887,0.05,41634.0,41622.0,0.0982]
[1646384334086,0.0011,41636.0,41622.0,0.05388582]
[1646384334283,0.0011,41636.0,41623.0,0.3272476]
[1646384334484,0.0011,41636.0,41623.0,0.0482]
[1646384334883,0.24827461,41631.0,41625.0,0.16845255]
[1646384335084,0.24827461,41631.0,41625.0,0.170157]
[1646384335283,0.0011,41636.0,41625.0,0.170157]
[1646384335684,0.0011,41636.0,41628.0,0.06008263]
[1646384335889,0.0011,41636.0,41628.0,0.21462073]
[1646384336184,0.0011,41636.0,41629.0,0.22590466]
[1646384336384,0.24134475,41634.0,41629.0,0.22590466]
[1646384336585,0.0011,41636.0,41629.0,0.05]
[1646384336836,0.0011,41636.0,41628.0,0.06008263]
[1646384337037,0.365427,41635.0,41625.0,0.05]
[1646384337240,0.0011,41636.0,41622.0,0.17176738]
[1646384337537,0.0011,41636.0,41624.0,0.18961741]
[1646384337836,0.0011,41636.0,41624.0,0.23961741]
[1646384338236,0.0011,41636.0,41626.0,0.0600866]
[1646384339137,0.0011,41636.0,41630.0,0.00159351]
[1646384339338,0.365427,41635.0,41630.0,0.00159351]
[1646384339742,0.0011,41636.0,41630.0,0.00159351]
[1646384340038,0.63345453,41635.0,41630.0,0.00159351]
[1646384340238,0.365427,41634.0,41630.0,0.00159351]
[1646384340438,0.26802753,41635.0,41630.0,0.00159351]
[1646384341089,0.05817295,41631.0,41630.0,0.00159351]
[1646384341289,0.26802753,41635.0,41630.0,0.00159351]
[1646384342688,1.00232753,41635.0,41630.0,0.00159351]
[1646384343691,0.365427,41634.0,41630.0,0.00159351]
[1646384344092,0.26802753,41635.0,41630.0,0.00159351]
[1646384344355,0.36802753,41635.0,41630.0,0.00159351]
[1646384345449,0.26802753,41635.0,41630.0,0.00159351]
[1646384346752,0.07195358,41634.0,41630.0,0.00159351]
[1646384346952,0.26802753,41635.0,41630.0,0.00159351]
[1646384348089,0.07307642,41634.0,41630.0,0.00159351]
[1646384349791,0.365427,41633.0,41630.0,0.00159351]
[1646384349991,0.0240428,41631.0,41630.0,0.00159351]
[1646384351193,0.3894698,41631.0,41630.0,0.00159351]
[1646384351394,1.1237698,41631.0,41630.0,0.00159351]
[1646384351695,1.1237698,41631.0,41621.0,0.00819922]
[1646384351696,1.099727,41628.0,41621.0,0.00819922]
[1646384351938,0.7343,41628.0,41621.0,0.00819922]
[1646384352238,0.1,41627.0,41621.0,0.00819922]
[1646384352439,0.365427,41626.0,41621.0,0.00819922]
[1646384352638,0.1,41627.0,41621.0,0.00819922]
[1646384352839,0.365427,41626.0,41621.0,0.00819922]
[1646384353140,1.099727,41625.0,41621.0,0.00819922]
[1646384353441,0.3272476,41626.0,41621.0,0.00819922]
[1646384353639,0.1,41624.0,41621.0,0.00819922]
[1646384353839,0.3272476,41623.0,41621.0,0.00819922]
[1646384354039,0.22842545,41622.0,41621.0,0.00819922]
[1646384356486,0.96272545,41622.0,41621.0,0.00819922]
[1646384356886,0.32842545,41622.0,41621.0,0.00819922]
[1646384357888,0.26506275,41622.0,41621.0,0.00819922]
[1646384358085,0.69231035,41622.0,41621.0,0.00819922]
[1646384358285,1.42661035,41622.0,41621.0,0.00819922]
[1646384358891,1.5636119,41622.0,41621.0,9.22e-06]
[1646384359090,1.6118119,41622.0,41621.0,9.22e-06]
[1646384362344,1.6618119,41622.0,41621.0,9.22e-06]
[1646384364286,2.25746509,41622.0,41621.0,9.22e-06]
[1646384364787,0.7343,41618.0,41594.0,0.38359217]
[1646384365085,1.123807,41611.0,41594.0,0.38359217]
[1646384365287,1.123807,41611.0,41593.0,0.19818893]
[1646384365288,0.75838,41609.0,41593.0,0.19818893]
[1646384365485,0.365427,41599.0,41593.0,0.19818893]
[1646384365685,0.0668187,41605.0,41593.0,0.19818893]
[1646384365883,0.365427,41604.0,41593.0,0.19818893]
[1646384366084,1.099727,41604.0,41594.0,0.18426298]
[1646384366485,0.7343,41602.0,41594.0,0.18426298]
[1646384366686,0.43073146,41603.0,41588.0,0.18540324]
[1646384366687,0.7343,41600.0,41588.0,0.18540324]
[1646384366937,0.7343,41596.0,41586.0,0.19818893]
[1646384367138,0.7343,41596.0,41583.0,0.24773617]
[1646384367139,0.7343,41592.0,41585.0,0.19818893]
[1646384367339,0.7343,41592.0,41583.0,0.19818893]
[1646384367340,0.7343,41590.0,41583.0,0.19818893]
[1646384367536,0.7343,41590.0,41580.0,0.18543812]
[1646384367537,0.7343,41586.0,41580.0,0.19818893]
[1646384367739,0.465427,41585.0,41583.0,0.21381708]
[1646384367935,0.365427,41585.0,41583.0,0.21381708]
[1646384368137,0.81095552,41598.0,41583.0,0.21381708]
[1646384368138,0.13585513,41596.0,41583.0,0.21381708]
[1646384368336,0.13585513,41596.0,41590.0,0.15609338]
[1646384368536,0.365427,41595.0,41590.0,0.15609338]
[1646384368739,0.1,41594.0,41590.0,0.15609338]
[1646384368938,0.1,41594.0,41585.0,0.54081736]
[1646384368939,0.64065014,41593.0,41585.0,0.54081736]
[1646384369140,0.42926292,41594.0,41585.0,0.54081736]
[1646384369337,0.03585513,41596.0,41585.0,0.72125097]
[1646384369537,0.32926292,41600.0,41585.0,0.72125097]
[1646384369740,0.32926292,41600.0,41585.0,0.77125097]
[1646384369942,0.32926292,41600.0,41592.0,0.1725072]
[1646384370340,0.25694914,41599.0,41592.0,0.2225072]
[1646384370587,0.25694914,41599.0,41592.0,0.28264674]
[1646384370787,1.099727,41598.0,41592.0,0.11013954]
[1646384370990,0.25694914,41599.0,41585.0,0.54081736]
[1646384370991,0.365427,41595.0,41585.0,0.54081736]
[1646384371289,0.32926292,41598.0,41585.0,0.59081736]
[1646384371687,0.1,41597.0,41587.0,0.06014542]
[1646384371889,0.365427,41596.0,41589.0,0.15951009]
[1646384372090,0.32926292,41595.0,41589.0,0.20951009]
[1646384372288,0.1,41594.0,41589.0,0.20951009]
[1646384372591,0.365427,41593.0,41589.0,0.20951009]
[1646384372892,0.365427,41593.0,41585.0,0.54081736]
[1646384372893,0.8343,41592.0,41585.0,0.54081736]
[1646384373090,0.7343,41590.0,41585.0,0.54081736]
[1646384373290,0.7343,41588.0,41585.0,0.54081736]
[1646384373489,0.79468992,41589.0,41585.0,0.54081736]
[1646384373490,1.099727,41586.0,41585.0,0.54081736]
[1646384373689,1.80372146,41586.0,41585.0,0.54081736]
[1646384373891,1.87052398,41586.0,41585.0,0.54081736]
[1646384374090,1.80372146,41586.0,41585.0,0.54081736]
[1646384374339,1.47445854,41586.0,41585.0,0.54081736]
[1646384374542,1.099727,41584.0,41576.0,0.2051196]
[1646384374738,1.099727,41584.0,41564.0,0.36807017]
[1646384374739,0.75838,41582.0,41566.0,0.19818893]
[1646384374940,0.75838,41580.0,41564.0,0.19818893]
[1646384375141,0.7343,41578.0,41564.0,0.19818893]
[1646384375339,0.7343,41578.0,41561.0,0.99163617]
[1646384375340,0.7343,41576.0,41561.0,0.20818893]
[1646384375642,0.7343,41576.0,41573.0,0.1871846]
[1646384375643,0.365427,41576.0,41573.0,0.1871846]
[1646384375839,0.1,41575.0,41573.0,0.1871846]
[1646384376041,0.28823274,41574.0,41573.0,0.1871846]
[1646384376240,0.1,41575.0,41573.0,0.1871846]
[1646384376640,0.0482,41581.0,41574.0,0.19777639]
[1646384376840,1.4548,41589.0,41584.0,0.16334069]
[1646384376841,0.7205,41589.0,41584.0,0.16334069]
[1646384377047,0.01201,41593.0,41584.0,0.16334069]
[1646384377240,0.32862068,41591.0,41584.0,0.16334069]
[1646384377444,0.004,41589.0,41584.0,0.21334069]
[1646384377840,0.004,41589.0,41585.0,0.16172535]
[1646384378092,0.004,41589.0,41585.0,0.22188134]
[1646384378295,0.004,41589.0,41585.0,0.27188134]
[1646384378691,0.6211,41600.0,41585.0,0.27188134]
[1646384378892,0.6211,41600.0,41585.0,0.15835599]
[1646384378893,0.5711,41600.0,41585.0,0.15835599]
[1646384379091,0.5711,41600.0,41589.0,0.060141]
[1646384379291,1.06292068,41602.0,41589.0,0.24054617]
[1646384379491,1.06292068,41602.0,41589.0,0.29054617]
[1646384379891,1.06292068,41602.0,41596.0,0.06013957]
[1646384380093,0.365427,41600.0,41596.0,0.06013957]
[1646384380295,0.28360999,41598.0,41596.0,0.06013957]
[1646384380892,0.2485,41611.0,41597.0,0.32862068]
[1646384381094,0.76165552,41616.0,41607.0,0.17293121]
[1646384381095,0.5647,41616.0,41607.0,0.17293121]
[1646384381401,0.2485,41618.0,41609.0,0.060117]
[1646384381595,0.002,41612.0,41609.0,0.060117]
[1646384382041,0.002,41612.0,41607.0,0.22293121]
[1646384382042,0.2717163,41612.0,41607.0,0.22293121]
[1646384382244,0.365427,41611.0,41607.0,0.05]
[1646384382642,0.365427,41611.0,41605.0,0.11012812]
[1646384382844,0.2697163,41612.0,41605.0,0.06012812]
[1646384383042,0.365427,41618.0,41605.0,0.06012812]
[1646384383242,0.365427,41616.0,41609.0,0.18352678]
[1646384383444,0.365427,41616.0,41605.0,0.06012812]
[1646384383643,0.1,41615.0,41605.0,0.06012812]
[1646384383842,0.365427,41614.0,41605.0,0.06012812]
[1646384384044,0.365427,41611.0,41605.0,0.06012812]
[1646384384242,0.1,41610.0,41605.0,0.06012812]
[1646384384443,0.1,41610.0,41605.0,0.23074844]
[1646384384843,0.1,41610.0,41605.0,0.28074844]
[1646384385043,0.1,41610.0,41607.0,0.060117]
[1646384385243,0.1,41610.0,41605.0,0.28074844]
[1646384385446,0.06841563,41620.0,41605.0,0.28074844]
[1646384385688,0.22340923,41614.0,41605.0,0.28074844]
[1646384385889,0.365427,41622.0,41614.0,0.06011206]
[1646384386890,0.20885307,41619.0,41613.0,0.05]
[1646384387089,0.365427,41618.0,41613.0,0.05]
[1646384388490,0.365427,41618.0,41614.0,0.06011126]
[1646384388691,0.365427,41616.0,41614.0,0.06011126]
[1646384389091,0.1,41617.0,41614.0,0.06011126]
[1646384389092,0.1,41615.0,41614.0,0.06011126]
[1646384389549,0.365427,41614.0,41608.0,0.06012426]
[1646384389749,0.365427,41612.0,41608.0,0.06012426]
[1646384389950,0.10277732,41619.0,41608.0,0.06012426]
[1646384390152,0.00277732,41619.0,41609.0,0.32862068]
[1646384390349,0.00277732,41619.0,41609.0,0.42862068]
[1646384390547,0.00277732,41619.0,41614.0,0.18064503]
[1646384390751,0.00277732,41619.0,41616.0,0.05]
[1646384391149,0.00277732,41619.0,41615.0,0.05]
[1646384391350,0.00277732,41619.0,41614.0,0.29075128]
[1646384393085,0.00277732,41619.0,41616.0,0.18825147]
[1646384393289,0.00277732,41619.0,41616.0,0.23825147]
[1646384393888,0.00277732,41619.0,41616.0,0.05]
[1646384394087,0.00277732,41619.0,41615.0,0.05]
[1646384394288,0.00208299,41619.0,41614.0,0.29075128]
[1646384394489,0.00208299,41619.0,41614.0,0.11010625]
[1646384395891,0.00208299,41619.0,41614.0,0.060108]
[1646384396690,0.00208299,41619.0,41613.0,0.03995001]
[1646384397336,0.00208299,41619.0,41614.0,0.06010625]
[1646384397537,0.00208299,41619.0,41614.0,0.12021425]
[1646384397738,0.00208299,41619.0,41614.0,0.17021425]
[1646384398541,0.00208299,41619.0,41614.0,0.11010625]
[1646384399137,0.00208299,41619.0,41614.0,0.16788325]
[1646384399340,0.00277732,41619.0,41614.0,0.16788325]
[1646384401405,0.365427,41618.0,41614.0,0.060108]
[1646384401605,1.099727,41618.0,41611.0,0.001]
[1646384401803,0.7343,41615.0,41611.0,0.001]
[1646384402003,0.1,41617.0,41611.0,0.001]
[1646384402004,1.099727,41612.0,41611.0,0.001]
[1646384402303,1.44151898,41612.0,41611.0,0.001]
[1646384402704,0.00014003,41610.0,41598.0,0.07212792]
[1646384402914,0.7343,41608.0,41596.0,0.012]
[1646384403105,0.75852003,41610.0,41594.0,0.012]
[1646384403304,0.1,41607.0,41594.0,0.012]
[1646384403504,0.1,41607.0,41595.0,0.002]
[1646384403706,0.24461452,41601.0,41600.0,0.1816924]
[1646384403905,0.365427,41606.0,41600.0,0.1816924]
[1646384404106,1.42547824,41606.0,41595.0,0.002]
[1646384404364,0.1,41605.0,41595.0,0.002]
[1646384404768,0.54386024,41604.0,41596.0,0.20535023]
[1646384404964,0.54386024,41604.0,41591.0,0.012]
[1646384404965,0.365427,41603.0,41591.0,0.012]
[1646384405265,0.365427,41603.0,41598.0,7.21e-06]
[1646384405266,0.708827,41603.0,41598.0,7.21e-06]
[1646384405467,0.708827,41603.0,41577.0,0.29848598]
[1646384405468,0.8795,41598.0,41579.0,0.19818893]
[1646384405668,0.365427,41599.0,41588.0,0.002]
[1646384405669,0.7343,41594.0,41588.0,0.002]
[1646384405963,0.32575124,41597.0,41588.0,0.002]
[1646384405964,0.7343,41590.0,41588.0,0.002]
[1646384406164,0.365427,41589.0,41588.0,0.002]
[1646384406365,1.44020603,41589.0,41588.0,0.002]
[1646384406766,1.44020603,41589.0,41577.0,0.06015763]
[1646384406767,1.49020603,41589.0,41577.0,0.06015763]
[1646384406965,1.099727,41587.0,41577.0,0.06015763]
[1646384407365,1.099727,41585.0,41577.0,0.06015763]
[1646384407562,1.06005124,41585.0,41577.0,0.24187348]
[1646384407764,1.099727,41582.0,41577.0,0.18171585]
[1646384408197,0.1,41584.0,41577.0,0.18171585]
[1646384408397,0.002,41589.0,41577.0,0.18171585]
[1646384408597,0.22283731,41585.0,41584.0,0.17264017]
[1646384408797,0.22283731,41585.0,41575.0,0.19818893]
[1646384408999,0.22283731,41585.0,41578.0,0.12031839]
[1646384409196,0.22283731,41585.0,41582.0,0.25395584]
[1646384409197,0.365427,41584.0,41582.0,0.25395584]
[1646384409397,1.099727,41583.0,41582.0,0.25395584]
[1646384409596,1.249727,41583.0,41582.0,0.25395584]
[1646384410398,1.249727,41583.0,41582.0,5.584e-05]
[1646384410399,1.57547824,41583.0,41582.0,5.584e-05]
[1646384411956,1.1,41582.0,41574.0,0.33987309]
[1646384412156,0.1,41582.0,41574.0,0.29672922]
[1646384412354,0.05,41580.0,41574.0,0.34672922]
[1646384412754,0.05,41581.0,41574.0,0.12719028]
[1646384412955,0.05,41581.0,41577.0,0.2110674]
[1646384413154,0.365427,41580.0,41577.0,0.2610674]
[1646384413355,0.1,41579.0,41577.0,0.2610674]
[1646384413556,0.15,41579.0,41577.0,0.2610674]
[1646384414158,0.365427,41578.0,41577.0,0.2610674]
[1646384414356,0.1,41578.0,41577.0,0.2610674]
[1646384415057,0.1,41578.0,41577.0,0.43116531]
[1646384415456,0.365427,41586.0,41577.0,0.43116531]
[1646384415687,0.003,41582.0,41577.0,0.43116531]
[1646384416088,0.05,41580.0,41577.0,0.43116531]
[1646384416289,0.003,41582.0,41577.0,0.2610674]
[1646384416696,0.003,41582.0,41578.0,0.3851913]
[1646384417091,0.25485115,41591.0,41588.0,0.20993005]
[1646384417291,0.25485115,41591.0,41588.0,0.27007985]
[1646384417491,0.33450646,41598.0,41588.0,0.27007985]
[1646384417492,0.33450646,41598.0,41588.0,0.32007985]
[1646384417692,0.365427,41593.0,41588.0,0.32007985]
[1646384417892,0.365427,41592.0,41588.0,0.32007985]
[1646384418093,1.099727,41592.0,41588.0,0.1101498]
[1646384418292,0.365427,41592.0,41588.0,0.1101498]
[1646384418693,0.002,41594.0,41589.0,0.1931305]
[1646384418894,0.82110646,41598.0,41588.0,0.1101498]
[1646384419093,0.01201,41604.0,41593.0,0.25763394]
[1646384419343,0.365427,41603.0,41593.0,0.25763394]
[1646384419540,0.365427,41603.0,41593.0,0.30763394]
[1646384419742,0.28728414,41598.0,41593.0,0.30763394]
[1646384419942,0.28728414,41598.0,41595.0,0.19303046]
[1646384420143,0.03615678,41604.0,41595.0,0.19303046]
[1646384420346,0.365427,41603.0,41595.0,0.24303046]
[1646384420543,0.05,41603.0,41595.0,0.24303046]
[1646384420743,0.05,41603.0,41600.0,0.1698259]
[1646384420946,0.2432,41609.0,41600.0,0.1698259]
[1646384421144,0.22901582,41610.0,41603.0,0.06012]
[1646384421443,0.00014003,41610.0,41602.0,0.12024346]
[1646384422043,0.00014003,41610.0,41605.0,0.21509341]
[1646384422242,0.00014003,41610.0,41606.0,0.32165923]
[1646384422845,0.00014003,41610.0,41606.0,0.31154423]
[1646384423104,0.00014003,41610.0,41608.0,0.16546342]
[1646384423402,0.00014003,41610.0,41606.0,0.31154423]
[1646384424004,0.00014003,41610.0,41606.0,0.11011521]
[1646384425202,0.00014003,41610.0,41607.0,0.060113]
[1646384425603,0.00014003,41610.0,41606.0,0.11011521]
[1646384425805,0.00014003,41610.0,41606.0,0.05]
[1646384426003,0.00014003,41610.0,41602.0,0.23009072]
[1646384426402,0.00014003,41610.0,41604.0,0.18701028]
[1646384426603,0.00014003,41610.0,41606.0,0.06011521]
[1646384428139,0.00014003,41610.0,41605.0,0.003]
[1646384428339,4.003e-05,41610.0,41605.0,0.003]
[1646384428940,4.003e-05,41610.0,41602.0,0.15586272]
[1646384429140,0.27708075,41606.0,41602.0,0.15586272]
[1646384429340,0.32708075,41606.0,41602.0,0.15586272]
[1646384429542,4.003e-05,41610.0,41602.0,0.15586272]
[1646384430689,4.003e-05,41610.0,41600.0,0.18034563]
[1646384430690,0.7843,41608.0,41596.0,0.003]
[1646384430892,1.123807,41607.0,41589.0,0.7254]
[1646384431088,0.85838,41607.0,41584.0,0.4585]
[1646384431289,0.85838,41607.0,41585.0,0.32063072]
[1646384431487,0.85838,41607.0,41595.0,0.21594799]
[1646384431488,0.8343,41607.0,41595.0,0.21594799]
[1646384431689,0.8343,41607.0,41602.0,0.18892607]
[1646384431690,0.1,41607.0,41602.0,0.18892607]
[1646384431890,0.05,41608.0,41602.0,0.18892607]
[1646384432090,4.003e-05,41610.0,41602.0,0.18892607]
[1646384432288,4.003e-05,41610.0,41602.0,0.05]
[1646384432687,0.26361536,41608.0,41599.0,0.120239]
[1646384432887,0.26361536,41608.0,41599.0,0.170239]
[1646384433089,4.003e-05,41610.0,41604.0,0.060119]
[1646384433287,4.003e-05,41610.0,41602.0,0.17023842]
[1646384433489,4.003e-05,41610.0,41607.0,0.17353969]
[1646384433690,4.003e-05,41610.0,41608.0,0.32063072]
[1646384433892,4.003e-05,41610.0,41609.0,0.13754494]
[1646384434090,0.00277732,41619.0,41618.0,0.21164573]
[1646384434353,0.00277732,41619.0,41618.0,0.26164573]
[1646384434544,0.00277732,41619.0,41618.0,0.58227645]
[1646384434746,0.0032,41622.0,41618.0,0.58227645]
[1646384435444,0.0032,41622.0,41618.0,0.81075064]
[1646384436444,0.0021,41628.0,41623.0,0.084164]
[1646384436644,0.0021,41628.0,41625.0,0.21632424]
[1646384436843,0.0011,41631.0,41626.0,0.8]
[1646384437043,0.0011,41631.0,41625.0,0.26452424]
[1646384437244,0.0011,41631.0,41625.0,0.31452424]
[1646384437446,0.0011,41631.0,41625.0,0.43467087]
[1646384438296,0.0011,41631.0,41625.0,0.62332531]
[1646384438491,0.0011,41631.0,41625.0,0.43467087]
[1646384439998,0.0011,41633.0,41627.0,0.120158]
[1646384440293,0.0011,41633.0,41632.0,0.19719463]
[1646384440694,0.21097341,41631.0,41628.0,0.0482]
[1646384441940,0.21097341,41631.0,41629.0,0.060077]
[1646384442737,0.21097341,41631.0,41630.0,0.17598635]
[1646384442939,0.21097341,41631.0,41629.0,0.060077]
[1646384443738,0.21097341,41631.0,41629.0,0.084157]
[1646384443940,0.21097341,41631.0,41629.0,0.134157]
[1646384444139,0.26097341,41631.0,41629.0,0.110077]
[1646384444339,0.26097341,41631.0,41629.0,0.060077]
[1646384444740,0.26097341,41631.0,41629.0,0.134157]
[1646384445142,0.24897341,41631.0,41629.0,0.134157]
[1646384445340,0.21097341,41631.0,41629.0,0.134157]
[1646384445589,0.21097341,41631.0,41629.0,0.29108715]
[1646384445991,0.0044,41638.0,41629.0,0.29108715]
[1646384445992,0.0045,41639.0,41631.0,0.02408]
[1646384446193,0.0001,41639.0,41637.0,0.02408]
[1646384446395,0.0001,41639.0,41638.0,0.07228]
[1646384446594,0.0001,41639.0,41638.0,0.28578193]
[1646384446791,0.0001,41639.0,41638.0,0.40797193]
[1646384446991,0.00151006,41644.0,41638.0,0.40797193]
[1646384446992,0.0131,41656.0,41642.0,1.42408]
[1646384447195,0.0011,41656.0,41648.0,1.4]
[1646384447394,0.0131,41659.0,41652.0,1.42408]
[1646384447595,0.0131,41659.0,41658.0,0.21447168]
[1646384447596,0.0011,41659.0,41658.0,0.21447168]
[1646384447796,0.0011,41659.0,41658.0,0.0482]
[1646384448595,2.009,41660.0,41659.0,0.19356254]
[1646384448794,2.009,41660.0,41659.0,0.23919631]
[1646384449446,0.0088,41669.0,41660.0,2.009]
[1646384449642,0.0032,41672.0,41664.0,0.33903394]
[1646384449841,0.0043,41673.0,41664.0,0.33903394]
[1646384449842,0.0032,41673.0,41667.0,0.02408]
[1646384450043,0.0012,41678.0,41671.0,0.16162494]
[1646384450243,0.0001,41679.0,41673.0,0.02408]
[1646384450445,0.20467584,41688.0,41674.0,0.0241]
[1646384450643,0.9488,41693.0,41681.0,0.05999145]
[1646384450644,0.05,41693.0,41681.0,0.05999145]
[1646384450845,0.20028,41692.0,41683.0,0.17996796]
[1646384451043,0.0003001,41697.0,41690.0,0.18749298]
[1646384451246,0.0003001,41697.0,41691.0,0.44059972]
[1646384451464,0.0003001,41697.0,41691.0,0.169969]
[1646384451843,0.0003001,41697.0,41692.0,0.0482]
[1646384452345,0.0003001,41697.0,41692.0,0.108189]
[1646384452543,0.0003001,41697.0,41693.0,0.52576858]
[1646384452746,0.0511,41701.0,41696.0,0.15]
[1646384452955,0.0011,41701.0,41698.0,0.07356576]
[1646384453199,0.001,41702.0,41699.0,0.0482]
[1646384453797,0.001,41702.0,41699.0,0.108166]
[1646384453998,0.001,41702.0,41699.0,0.158166]
[1646384454199,0.365427,41701.0,41699.0,0.0482]